bitfinex/quotes_BTCUSD_20250616
["timestamp","ask_amount","ask_price","bid_price","bid_amount"]
[1750107133110,0.93725441,108760.0,108750.0,0.21619322]
[1750107133358,0.94644854,108760.0,108750.0,0.21619322]
[1750107133762,0.94644845,108760.0,108750.0,0.21619322]
[1750107133969,0.372,108760.0,108750.0,0.30773498]
[1750107134176,0.032,108760.0,108750.0,0.30773498]
[1750107134396,0.0337,108770.0,108760.0,0.21147377]
[1750107134609,0.0337,108770.0,108760.0,0.82081606]
[1750107134610,0.002,108770.0,108760.0,0.82081606]
[1750107134818,0.002,108770.0,108760.0,0.82611606]
[1750107135186,0.002,108770.0,108760.0,0.33533353]
[1750107135998,0.002,108770.0,108760.0,0.33633353]
[1750107136992,0.002,108770.0,108760.0,0.33933353]
[1750107137215,0.002,108770.0,108760.0,0.33833353]
[1750107137397,0.002,108770.0,108760.0,0.34603353]
[1750107138214,0.002,108770.0,108760.0,0.86443406]
[1750107139719,0.002,108770.0,108760.0,0.34603353]
[1750107140504,0.55985364,108770.0,108760.0,0.31371553]
[1750107140697,0.77130831,108770.0,108760.0,0.01519438]
[1750107140873,0.77130831,108770.0,108760.0,0.006]
[1750107140874,0.92100192,108770.0,108760.0,0.006]
[1750107141052,1.26100192,108770.0,108760.0,0.006]
[1750107142098,1.26100192,108770.0,108760.0,0.003]
[1750107142301,0.24703402,108760.0,108750.0,0.20229824]
[1750107142507,0.76932851,108760.0,108750.0,0.21149313]
[1750107142705,0.58543738,108760.0,108750.0,0.22068794]
[1750107143324,0.76932851,108760.0,108750.0,0.22068794]
[1750107143977,0.76932851,108760.0,108750.0,0.21449313]
[1750107144180,0.76932851,108760.0,108750.0,0.21749313]
[1750107144931,0.57624283,108760.0,108750.0,0.21749313]
[1750107145135,0.58543721,108760.0,108750.0,0.22668794]
[1750107145332,0.59463168,108760.0,108750.0,0.22668794]
[1750107145744,0.77852281,108760.0,108750.0,0.21749313]
[1750107145943,0.7785234,108760.0,108750.0,0.21749313]
[1750107146348,0.76932936,108760.0,108750.0,0.21749313]
[1750107147096,0.76932936,108760.0,108750.0,0.22668794]
[1750107147264,0.58543823,108760.0,108750.0,0.22668794]
[1750107149169,0.76932936,108760.0,108750.0,0.22668794]
[1750107150386,0.76013506,108760.0,108750.0,0.20829824]
[1750107150600,0.76013506,108760.0,108750.0,0.21749313]
[1750107152713,0.56704938,108760.0,108750.0,0.22668794]
[1750107153629,0.75094051,108760.0,108750.0,0.22668794]
[1750107153839,0.76013506,108760.0,108750.0,0.22668794]
[1750107154353,0.76013506,108760.0,108750.0,0.21749313]
[1750107154992,0.24703453,108760.0,108750.0,0.21749313]
[1750107155191,0.76013506,108760.0,108750.0,0.21749313]
[1750107156244,0.76013506,108760.0,108750.0,0.22668794]
[1750107156535,0.76013506,108760.0,108750.0,0.20829824]
[1750107156884,0.76013506,108760.0,108750.0,0.21749347]
[1750107158428,0.24703453,108760.0,108750.0,0.19910327]
[1750107158775,0.75094068,108760.0,108750.0,0.19910327]
[1750107158933,0.75094068,108760.0,108750.0,0.21749347]
[1750107161499,0.75094068,108760.0,108750.0,0.19910327]
[1750107161719,0.74174621,108760.0,108750.0,0.19910327]
[1750107161941,0.74174621,108760.0,108750.0,0.20829841]
[1750107162384,0.74174621,108760.0,108750.0,0.21749347]
[1750107163919,0.74174621,108760.0,108750.0,0.19910327]
[1750107164182,1.58565219,108760.0,108750.0,0.006]
[1750107165087,1.68189395,108760.0,108750.0,0.006]
[1750107165312,1.68189395,108760.0,108750.0,0.003]
[1750107165537,0.21153212,108730.0,108720.0,0.18595799]
[1750107165768,1.26803265,108730.0,108720.0,0.00204722]
[1750107165992,1.25883615,108730.0,108720.0,0.01124515]
[1750107166437,1.25883615,108730.0,108720.0,0.19520394]
[1750107166659,1.25883615,108730.0,108720.0,0.21359939]
[1750107167634,1.25883615,108730.0,108720.0,0.21459939]
[1750107168077,1.25883615,108730.0,108720.0,0.20640171]
[1750107168299,1.25883615,108730.0,108720.0,0.21559939]
[1750107168521,1.2496394,108730.0,108720.0,0.20640171]
[1750107169658,0.73653887,108730.0,108720.0,0.20640171]
[1750107169845,1.2496394,108730.0,108720.0,0.20640171]
[1750107170557,1.26539003,108730.0,108720.0,0.21559939]
[1750107172323,1.26539003,108730.0,108720.0,0.18800601]
[1750107172993,1.26539003,108730.0,108720.0,0.19720394]
[1750107173474,1.25619303,108730.0,108720.0,0.00404722]
[1750107173727,0.7430925,108730.0,108720.0,0.00404722]
[1750107173954,1.25619303,108730.0,108720.0,0.00404722]
[1750107176446,1.76929356,108730.0,108720.0,0.00404722]
[1750107176659,1.25619303,108730.0,108720.0,0.00404722]
[1750107183631,1.97622539,108730.0,108720.0,0.00404722]
[1750107183840,1.99820093,108730.0,108720.0,0.00404722]
[1750107184322,2.04820093,108730.0,108720.0,0.00404722]
[1750107184514,2.04820093,108730.0,108720.0,0.00304722]
[1750107185506,2.04820093,108730.0,108720.0,0.00204722]
[1750107187050,2.05120093,108730.0,108720.0,0.00204722]
[1750107187268,2.05220093,108730.0,108720.0,0.00204722]
[1750107188819,0.74667321,108710.0,108700.0,0.002]
[1750107189026,0.97256497,108710.0,108700.0,0.002]
[1750107189923,0.84748497,108710.0,108700.0,0.002]
[1750107190135,1.01520497,108710.0,108700.0,0.002]
[1750107191341,0.33438444,108710.0,108700.0,0.002]
[1750107191567,0.84848497,108710.0,108700.0,0.002]
[1750107191771,0.04139836,108710.0,108700.0,0.1951921]
[1750107191972,0.14643646,108710.0,108700.0,0.21844042]
[1750107192419,0.0305949,108710.0,108700.0,0.21844042]
[1750107192642,0.0101981,108710.0,108700.0,0.21844042]
[1750107192755,0.89110967,108710.0,108700.0,0.21844042]
[1750107192962,0.89011035,108710.0,108700.0,0.20924139]
[1750107193178,0.88091216,108710.0,108700.0,0.20924139]
[1750107193432,0.87171372,108710.0,108700.0,0.2000421]
[1750107193640,0.87171372,108710.0,108700.0,0.1951921]
[1750107193839,0.86708502,108710.0,108700.0,0.002]
[1750107194643,0.35398449,108710.0,108700.0,0.002]
[1750107194818,0.86708502,108710.0,108700.0,0.002]
[1750107199467,0.35398449,108710.0,108700.0,0.002]
[1750107199676,0.86708502,108710.0,108700.0,0.18599264]
[1750107199886,0.86708502,108710.0,108700.0,0.002]
[1750107200340,0.74204502,108710.0,108700.0,0.002]
[1750107200567,0.56269776,108710.0,108700.0,0.21844076]
[1750107200790,0.92335174,108710.0,108700.0,0.21844076]
[1750107201047,0.92335174,108710.0,108700.0,0.20924164]
[1750107202280,0.92331174,108710.0,108700.0,0.20924164]
[1750107202745,0.91411347,108710.0,108700.0,0.20004227]
[1750107202965,0.89571624,108710.0,108700.0,0.20004227]
[1750107203215,0.89571624,108710.0,108700.0,0.20924173]
[1750107203662,0.73747485,108710.0,108700.0,0.22279022]
[1750107203882,0.01839646,108710.0,108700.0,0.23728925]
[1750107204105,0.48335637,108710.0,108700.0,0.23728925]
[1750107204348,0.06619324,108750.0,108720.0,0.18395879]
[1750107204601,0.0021417,108750.0,108740.0,0.71541754]
[1750107204819,0.0021417,108750.0,108740.0,0.30775442]
[1750107205255,0.51524223,108750.0,108740.0,0.30775442]
[1750107205680,0.0051417,108750.0,108740.0,0.30775442]
[1750107205913,0.0021417,108750.0,108740.0,0.30775442]
[1750107206774,0.0031417,108750.0,108740.0,0.31175442]
[1750107207213,0.01133642,108750.0,108740.0,0.31175442]
[1750107207425,0.01133651,108750.0,108740.0,0.31660442]
[1750107207666,0.02053131,108750.0,108740.0,0.31960442]
[1750107207887,1.27143572,108750.0,108740.0,0.19092495]
[1750107208108,0.76290519,108750.0,108740.0,0.20931718]
[1750107209001,0.77210059,108750.0,108740.0,0.21151317]
[1750107209217,0.77210059,108750.0,108740.0,0.21351317]
[1750107209438,0.77210059,108750.0,108740.0,0.21551317]
[1750107209855,0.77210059,108750.0,108740.0,0.20407717]
[1750107210060,0.77210059,108750.0,108740.0,0.21327316]
[1750107210270,0.05213139,108750.0,108740.0,0.21327316]
[1750107210510,0.06132629,108750.0,108740.0,0.23621471]
[1750107210738,0.57442682,108750.0,108740.0,0.23621471]
[1750107210981,0.57442682,108750.0,108740.0,0.23621429]
[1750107211672,0.57442682,108750.0,108740.0,0.22701864]
[1750107211913,0.58362196,108750.0,108740.0,0.22701864]
[1750107212403,0.57442682,108750.0,108740.0,0.23621429]
[1750107213085,0.0021417,108750.0,108740.0,0.33245605]
[1750107213326,0.0021417,108750.0,108740.0,0.85085658]
[1750107213572,0.0021417,108750.0,108740.0,1.00335958]
[1750107214041,0.0021417,108750.0,108740.0,0.49025905]
[1750107215433,0.0021417,108750.0,108740.0,1.00335958]
[1750107216056,0.0021417,108750.0,108740.0,1.02335958]
[1750107220323,0.0021417,108750.0,108740.0,0.51025905]
[1750107220528,0.0021417,108750.0,108740.0,1.02135958]
[1750107220733,0.0021417,108750.0,108740.0,1.02635958]
[1750107221167,0.0021417,108750.0,108740.0,1.02435958]
[1750107221348,0.0021417,108750.0,108740.0,1.02835958]
[1750107226046,0.0021417,108750.0,108740.0,1.04290043]
[1750107228272,0.0021417,108750.0,108740.0,0.4049199]
[1750107228485,0.0021417,108750.0,108740.0,1.08514043]
[1750107241690,0.0021417,108750.0,108740.0,1.07984043]
[1750107241999,0.0021417,108750.0,108740.0,0.3996199]
[1750107242181,0.0339417,108750.0,108740.0,0.3996199]
[1750107242355,0.0339417,108750.0,108740.0,0.5242999]
[1750107242560,0.0339417,108750.0,108740.0,1.03740043]
[1750107242778,0.0339417,108750.0,108740.0,0.5242999]
[1750107242980,0.0339417,108750.0,108740.0,1.03740043]
[1750107244149,0.0178417,108750.0,108740.0,1.03740043]
[1750107244350,0.0021417,108750.0,108740.0,1.03740043]
[1750107244638,0.0021417,108750.0,108740.0,1.04270043]
[1750107244861,0.0021417,108750.0,108740.0,1.60580096]
[1750107245067,0.0021417,108750.0,108740.0,1.16586322]
[1750107245183,0.00013479,108750.0,108740.0,1.16586322]
[1750107246251,1.12e-06,108750.0,108740.0,2.31286375]
[1750107246501,0.002,108770.0,108760.0,0.43147377]
[1750107246743,0.0339,108770.0,108760.0,1.16545606]
[1750107247243,0.0339,108770.0,108760.0,1.19307106]
[1750107247458,0.0339,108770.0,108760.0,1.19776106]
[1750107247848,0.0339,108770.0,108760.0,1.19976106]
[1750107249916,0.0339,108770.0,108760.0,1.22796752]
[1750107250986,0.0339,108770.0,108760.0,0.71486699]
[1750107251412,0.002,108770.0,108760.0,0.72940784]
[1750107251615,0.002,108770.0,108760.0,1.24780837]
[1750107252519,0.002,108770.0,108760.0,1.24246837]
[1750107252729,0.002,108770.0,108760.0,1.24146837]
[1750107253377,0.002,108770.0,108760.0,1.24046837]
[1750107253672,0.002,108770.0,108760.0,1.24346837]
[1750107253853,0.002,108770.0,108760.0,1.24646837]
[1750107254999,0.0335,108770.0,108760.0,1.24646837]
[1750107255430,0.0335,108770.0,108760.0,1.12186837]
[1750107255634,0.0335,108770.0,108760.0,1.24646837]
[1750107255773,0.0335,108770.0,108760.0,0.73336784]
[1750107256142,0.0335,108770.0,108760.0,0.60876784]
[1750107256344,0.54660053,108770.0,108760.0,0.36953699]
[1750107256584,0.55157053,108770.0,108760.0,0.49409699]
[1750107257354,0.55157053,108770.0,108760.0,0.36953699]
[1750107257558,0.55157053,108770.0,108760.0,0.49409699]
[1750107257771,0.55157053,108770.0,108760.0,0.36953699]
[1750107257982,0.55157053,108770.0,108760.0,0.49409699]
[1750107260066,0.03847,108770.0,108760.0,0.49409699]
[1750107263206,0.55157053,108770.0,108760.0,0.34133053]
[1750107263415,0.55157053,108770.0,108760.0,0.43823553]
[1750107263615,0.56076364,108770.0,108760.0,0.43823553]
[1750107264682,0.56995684,108770.0,108760.0,0.43823553]
[1750107264890,0.56076364,108770.0,108760.0,0.31371553]
[1750107265098,0.56995692,108770.0,108760.0,0.43823553]
[1750107265509,0.56076364,108770.0,108760.0,0.43823553]
[1750107266049,0.57915046,108770.0,108760.0,0.43823553]
[1750107266254,0.56995692,108770.0,108760.0,0.43823553]
[1750107267621,0.56076364,108770.0,108760.0,0.43823553]
[1750107267831,0.56995684,108770.0,108760.0,0.43823553]
[1750107269518,0.57915012,108770.0,108760.0,0.43823553]
[1750107270200,0.56995684,108770.0,108760.0,0.43823553]
[1750107270737,0.56076356,108770.0,108760.0,0.43823553]
[1750107272613,0.56995676,108770.0,108760.0,0.43823553]
[1750107272820,0.56076356,108770.0,108760.0,0.43823553]
[1750107276338,0.55157053,108770.0,108760.0,0.43823553]
[1750107276542,0.56076348,108770.0,108760.0,0.43823553]
[1750107276725,0.56995659,108770.0,108760.0,0.43823553]
[1750107277046,0.56076348,108770.0,108760.0,0.43823553]
[1750107277251,0.55157053,108770.0,108760.0,0.43823553]
[1750107277602,0.56076348,108770.0,108760.0,0.43823553]
[1750107279736,0.56995651,108770.0,108760.0,0.43823553]
[1750107280136,0.57914971,108770.0,108760.0,0.43823553]
[1750107280585,0.56995651,108770.0,108760.0,0.43823553]
[1750107281322,0.57914962,108770.0,108760.0,0.43823553]
[1750107282341,0.0335,108770.0,108760.0,0.43823553]
[1750107284852,0.002,108770.0,108760.0,0.95133606]
[1750107285055,0.002,108770.0,108760.0,0.99349091]
[1750107285272,0.002,108770.0,108760.0,1.19879091]
[1750107285511,0.002,108770.0,108760.0,1.2719537]
[1750107286319,0.002,108770.0,108760.0,1.2689537]
[1750107286525,0.002,108770.0,108760.0,1.2739537]
[1750107286729,0.002,108770.0,108760.0,1.29812609]
[1750107286869,0.002,108770.0,108760.0,0.78502556]
[1750107287080,0.002,108770.0,108760.0,1.30212609]
[1750107287309,0.002,108770.0,108760.0,1.30669609]
[1750107287512,0.00039803,108770.0,108760.0,1.30669609]
[1750107288413,0.00039803,108770.0,108760.0,1.2335333]
[1750107288651,0.00039803,108770.0,108760.0,1.30675649]
[1750107289902,0.00039803,108770.0,108760.0,1.18223649]
[1750107290120,0.00039803,108770.0,108760.0,1.34329649]
[1750107292970,0.00039803,108770.0,108760.0,1.30125649]
[1750107297244,0.00039803,108770.0,108760.0,1.17693649]
[1750107297454,0.00039803,108770.0,108760.0,1.30121649]
[1750107298280,0.01579803,108770.0,108760.0,1.30121649]
[1750107300344,0.01579803,108770.0,108760.0,0.78811596]
[1750107300546,0.01579803,108770.0,108760.0,1.30121649]
[1750107301328,0.03109803,108770.0,108760.0,1.30121649]
[1750107303859,0.03109803,108770.0,108760.0,0.78811596]
[1750107304070,0.03109803,108770.0,108760.0,0.86383596]
[1750107304280,0.03109803,108770.0,108760.0,0.91481277]
[1750107304495,0.55339151,108770.0,108760.0,0.37150192]
[1750107304730,0.54877856,108770.0,108760.0,0.49570192]
[1750107304937,0.54877856,108770.0,108760.0,0.34432953]
[1750107305123,0.54877856,108770.0,108760.0,0.46852953]
[1750107305764,0.03567803,108770.0,108760.0,0.46852953]
[1750107306875,0.03109803,108770.0,108760.0,0.46852953]
[1750107307306,0.03109803,108770.0,108760.0,0.47348953]
[1750107308271,0.03109803,108770.0,108760.0,0.46852953]
[1750107308482,0.03109803,108770.0,108760.0,0.98659006]
[1750107308692,0.03109803,108770.0,108760.0,1.40113091]
[1750107308902,0.00039803,108770.0,108760.0,1.40113091]
[1750107309745,0.00039803,108770.0,108760.0,1.4743541]
[1750107310159,0.00039803,108770.0,108760.0,1.50158933]
[1750107314673,8.058e-05,108770.0,108760.0,1.50158933]
[1750107314895,0.01648058,108770.0,108760.0,1.50158933]
[1750107315137,0.03188058,108770.0,108760.0,1.50158933]
[1750107315567,0.03188058,108770.0,108760.0,0.6593288]
[1750107315782,0.03188058,108770.0,108760.0,0.7834488]
[1750107317541,0.03188058,108770.0,108760.0,0.7884088]
[1750107322013,0.03188058,108770.0,108760.0,0.7834488]
[1750107322224,0.03188058,108770.0,108760.0,0.7884088]
[1750107336968,0.03188058,108770.0,108760.0,1.30212237]
[1750107339526,0.0318,108780.0,108770.0,0.42599518]
[1750107339744,0.002,108790.0,108780.0,0.76597574]
[1750107339968,0.002,108790.0,108780.0,2.64409497]
[1750107340183,0.002,108810.0,108800.0,0.64593687]
[1750107340417,0.00247298,108810.0,108800.0,0.98099222]
[1750107340624,0.00247298,108810.0,108800.0,2.00841936]
[1750107341050,0.00247298,108810.0,108800.0,2.03602136]
[1750107341946,0.00247298,108810.0,108800.0,2.04102136]
[1750107342154,0.00247298,108810.0,108800.0,1.96796777]
[1750107342575,0.00247298,108810.0,108800.0,1.97268777]
[1750107342791,0.00247298,108810.0,108800.0,2.97475493]
[1750107343017,0.00247298,108810.0,108800.0,2.45974476]
[1750107343246,0.00247298,108810.0,108800.0,1.96651144]
[1750107343679,0.00247298,108810.0,108800.0,1.95451144]
[1750107343888,0.00247298,108810.0,108800.0,2.40252312]
[1750107344107,0.002,108830.0,108820.0,1.16368329]
[1750107344337,0.00214181,108830.0,108820.0,1.25992505]
[1750107344510,0.00214181,108830.0,108820.0,1.42548505]
[1750107345330,0.00214181,108830.0,108820.0,1.42948505]
[1750107345560,0.00214181,108830.0,108820.0,1.79708205]
[1750107346376,0.00214181,108830.0,108820.0,1.28901678]
[1750107346590,0.00214181,108830.0,108820.0,1.63652205]
[1750107346786,0.03394181,108830.0,108820.0,1.09873678]
[1750107347004,0.54700708,108830.0,108820.0,0.74419593]
[1750107347202,0.55189708,108830.0,108820.0,0.54419593]
[1750107347427,0.55189708,108830.0,108820.0,0.66803593]
[1750107347836,0.03883181,108830.0,108820.0,0.66803593]
[1750107348261,0.03883181,108830.0,108820.0,0.69497438]
[1750107348468,0.55189708,108830.0,108820.0,0.69497438]
[1750107348671,0.55189708,108830.0,108820.0,0.69493438]
[1750107349292,0.55189708,108830.0,108820.0,0.57113438]
[1750107349499,0.03883181,108830.0,108820.0,0.69493438]
[1750107349918,0.03883181,108830.0,108820.0,0.57113438]
[1750107350122,0.03883181,108830.0,108820.0,0.69493438]
[1750107353219,0.03883181,108830.0,108820.0,0.69489438]
[1750107359555,0.55189708,108830.0,108820.0,0.37113438]
[1750107359757,0.55189708,108830.0,108820.0,0.49485438]
[1750107361901,0.55189708,108830.0,108820.0,0.46725738]
[1750107363751,0.03394181,108830.0,108820.0,0.46725738]
[1750107363968,0.03394181,108830.0,108820.0,1.3997835]
[1750107364175,0.03394181,108830.0,108820.0,0.88671823]
[1750107365075,0.03394181,108830.0,108820.0,0.68671823]
[1750107365292,0.03394181,108830.0,108820.0,0.54353738]
[1750107365504,0.03394181,108830.0,108820.0,0.67213738]
[1750107366564,0.03394181,108830.0,108820.0,0.54845738]
[1750107367011,0.54700708,108830.0,108820.0,0.46717738]
[1750107367249,0.55178708,108830.0,108820.0,0.46717738]
[1750107368350,0.03872181,108830.0,108820.0,0.46717738]
[1750107369249,0.03394181,108830.0,108820.0,0.46717738]
[1750107369472,0.03394181,108830.0,108820.0,1.18024265]
[1750107369707,0.01864181,108830.0,108820.0,1.1947835]
[1750107369918,0.00214181,108830.0,108820.0,1.1947835]
[1750107370133,0.00214181,108830.0,108820.0,1.1947435]
[1750107370342,0.00214181,108830.0,108820.0,1.3947435]
[1750107370825,0.00214181,108830.0,108820.0,1.4147435]
[1750107372249,0.00214181,108830.0,108820.0,1.4423405]
[1750107372501,0.00214181,108830.0,108820.0,1.4472605]
[1750107377000,0.00214181,108830.0,108820.0,1.86003677]
[1750107382711,0.0311,108840.0,108830.0,0.21133775]
[1750107382911,0.03118688,108840.0,108830.0,0.30757951]
[1750107383081,0.03118688,108840.0,108830.0,0.43109951]
[1750107383281,0.03118688,108840.0,108830.0,0.30757951]
[1750107383497,0.03118688,108840.0,108830.0,0.45865551]
[1750107383868,0.03118688,108840.0,108830.0,0.46465551]
[1750107387487,0.03118688,108840.0,108830.0,0.46957551]
[1750107389688,0.03118688,108840.0,108830.0,0.98264078]
[1750107391076,0.03118688,108840.0,108830.0,0.46957551]
[1750107391704,0.03118688,108840.0,108830.0,0.46953551]
[1750107397613,0.03118688,108840.0,108830.0,0.34609551]
[1750107397822,0.03118688,108840.0,108830.0,0.46949551]
[1750107398579,0.03118688,108840.0,108830.0,0.54227178]
[1750107400403,0.03118688,108840.0,108830.0,0.54223178]
[1750107402169,0.03118688,108840.0,108830.0,1.05529705]
[1750107403541,0.03118688,108840.0,108830.0,1.0698379]
[1750107407279,0.03118688,108840.0,108830.0,1.1110379]
[1750107413669,8.688e-05,108840.0,108830.0,1.1110379]
[1750107414093,7.85e-06,108840.0,108830.0,1.03826163]
[1750107414720,7.85e-06,108840.0,108830.0,1.03334163]
[1750107415662,7.85e-06,108840.0,108830.0,0.86878163]
[1750107415924,7.85e-06,108840.0,108830.0,1.03326163]
[1750107417580,7.85e-06,108840.0,108830.0,1.48457862]
[1750107417724,7.85e-06,108840.0,108830.0,1.53987862]
[1750107417934,7.85e-06,108840.0,108830.0,1.61343169]
[1750107418139,7.85e-06,108840.0,108830.0,1.90733169]
[1750107418543,7.85e-06,108840.0,108830.0,1.90729169]
[1750107419174,7.85e-06,108840.0,108830.0,1.90429169]
[1750107419795,7.85e-06,108840.0,108830.0,1.74685169]
[1750107419966,0.03100785,108840.0,108830.0,1.08980335]
[1750107420192,0.03100785,108840.0,108830.0,1.33108335]
[1750107420367,0.03100785,108840.0,108830.0,1.45424335]
[1750107420604,0.03100785,108840.0,108830.0,1.58209163]
[1750107420762,7.85e-06,108840.0,108830.0,1.72083862]
[1750107421317,7.85e-06,108840.0,108830.0,1.74583862]
[1750107421469,7.85e-06,108840.0,108830.0,2.25890389]
[1750107421667,0.002,108850.0,108830.0,2.43721481]
[1750107421906,0.002,108850.0,108840.0,1.78987464]
[1750107422110,0.0326,108850.0,108840.0,0.68828794]
[1750107422314,0.0326,108850.0,108840.0,1.61447622]
[1750107424496,0.0326,108850.0,108840.0,1.62147622]
[1750107424724,0.0326,108850.0,108840.0,1.62647622]
[1750107425157,0.0318057,108850.0,108840.0,1.62647622]
[1750107427657,0.0318057,108850.0,108840.0,1.62639622]
[1750107428323,0.0318057,108850.0,108840.0,1.65398422]
[1750107435010,0.0318057,108850.0,108840.0,0.92168895]
[1750107435231,0.0365657,108850.0,108840.0,1.06576895]
[1750107436316,0.0365657,108850.0,108840.0,1.57883422]
[1750107439432,0.0318057,108850.0,108840.0,1.57883422]
[1750107440517,0.0518057,108850.0,108840.0,1.57883422]
[1750107440726,0.0565657,108850.0,108840.0,1.41475422]
[1750107440937,0.0565657,108850.0,108840.0,1.23879422]
[1750107441995,0.0518057,108850.0,108840.0,1.23879422]
[1750107444674,0.0513057,108850.0,108840.0,1.23879422]
[1750107447511,0.0513057,108850.0,108840.0,1.24366422]
[1750107448979,0.0513057,108850.0,108840.0,1.75639393]
[1750107451578,0.0513057,108850.0,108840.0,1.77639393]
[1750107453060,0.0513057,108850.0,108840.0,1.26344527]
[1750107458523,0.0362057,108850.0,108840.0,2.11629159]
[1750107458722,0.00117152,108850.0,108840.0,2.23689159]
[1750107458934,0.0155,108860.0,108850.0,0.77129893]
[1750107459143,0.0175,108870.0,108860.0,0.42582036]
[1750107459345,0.0175,108870.0,108860.0,1.15774844]
[1750107459914,0.0175,108870.0,108860.0,1.18533444]
[1750107460126,0.0175,108870.0,108860.0,1.19691701]
[1750107461233,0.01754725,108870.0,108860.0,0.68407069]
[1750107461466,0.01754725,108870.0,108860.0,1.20291701]
[1750107461702,0.03404725,108870.0,108860.0,1.20291701]
[1750107462197,0.01754725,108870.0,108860.0,1.20291701]
[1750107462698,0.03294725,108870.0,108860.0,1.20757701]
[1750107463131,0.01754725,108870.0,108860.0,1.20757701]
[1750107464054,0.03364725,108870.0,108860.0,1.20757701]
[1750107464825,0.01754725,108870.0,108860.0,1.20757701]
[1750107465066,0.00204725,108870.0,108860.0,1.20757701]
[1750107465251,0.00204725,108870.0,108860.0,0.64484136]
[1750107465447,0.03855725,108870.0,108860.0,0.64018136]
[1750107465610,0.03855725,108870.0,108860.0,0.67548984]
[1750107465811,0.03374725,108870.0,108860.0,1.19299616]
[1750107466095,0.03374725,108870.0,108860.0,1.20753701]
[1750107466372,0.00204725,108870.0,108860.0,1.69048768]
[1750107466590,0.00204725,108870.0,108860.0,1.70608768]
[1750107466792,0.0317,108880.0,108870.0,0.4159201]
[1750107466996,0.0156,108880.0,108870.0,1.58079589]
[1750107467207,0.0337,108890.0,108880.0,0.43044155]
[1750107467417,0.03374724,108890.0,108880.0,1.16232963]
[1750107468047,0.03374724,108890.0,108880.0,1.18991063]
[1750107468689,0.03374724,108890.0,108880.0,0.67706431]
[1750107468914,0.03374724,108890.0,108880.0,0.68206431]
[1750107469511,0.03374724,108890.0,108880.0,0.68906431]
[1750107469743,0.03374724,108890.0,108880.0,1.20191063]
[1750107471015,0.03374724,108890.0,108880.0,1.22934276]
[1750107473510,0.01764724,108890.0,108880.0,1.22934276]
[1750107474736,0.00204724,108890.0,108880.0,1.22934276]
[1750107475386,0.00204724,108890.0,108880.0,1.24934276]
[1750107475623,0.4171629,108900.0,108890.0,2.01349479]
[1750107475838,0.39386242,108900.0,108890.0,2.10973655]
[1750107476051,0.39386242,108900.0,108890.0,1.50015023]
[1750107476265,0.39386242,108900.0,108890.0,0.88200391]
[1750107476475,0.39386242,108900.0,108890.0,1.44485023]
[1750107476708,0.39386242,108900.0,108890.0,1.55849023]
[1750107476918,0.39386242,108900.0,108890.0,1.60849023]
[1750107477349,0.39386242,108900.0,108890.0,1.61315023]
[1750107477530,0.39386242,108900.0,108890.0,1.67850475]
[1750107477745,0.39386242,108900.0,108890.0,1.62115023]
[1750107478048,0.39386242,108900.0,108890.0,1.10830391]
[1750107478255,0.39386242,108900.0,108890.0,1.62115023]
[1750107478661,0.39386242,108900.0,108890.0,1.57115023]
[1750107478865,0.39386242,108900.0,108890.0,1.63115023]
[1750107479108,0.39386242,108900.0,108890.0,1.68850475]
[1750107479535,0.39386242,108900.0,108890.0,1.63850475]
[1750107479747,0.39386242,108900.0,108890.0,1.68850475]
[1750107480169,0.39386242,108900.0,108890.0,1.63115023]
[1750107480400,0.39386242,108900.0,108890.0,1.49638972]
[1750107480632,0.39386242,108900.0,108890.0,1.58111023]
[1750107481280,0.42656242,108900.0,108890.0,0.54000391]
[1750107481488,0.42656242,108900.0,108890.0,1.21645023]
[1750107481932,0.42656242,108900.0,108890.0,1.22113023]
[1750107482142,0.42656242,108900.0,108890.0,1.56113023]
[1750107483193,0.43125242,108900.0,108890.0,0.52546306]
[1750107483404,0.43125242,108900.0,108890.0,0.64810306]
[1750107484026,0.43125242,108900.0,108890.0,0.64010306]
[1750107484254,0.43125242,108900.0,108890.0,0.51746306]
[1750107484462,0.94409874,108900.0,108890.0,0.64010306]
[1750107484885,0.43125242,108900.0,108890.0,0.63010306]
[1750107485102,0.94409874,108900.0,108890.0,0.30746306]
[1750107485314,0.94409874,108900.0,108890.0,0.44510306]
[1750107485550,0.94409874,108900.0,108890.0,0.31446306]
[1750107485970,0.96246294,108900.0,108890.0,0.43710306]
[1750107486195,0.96246294,108900.0,108890.0,0.43410306]
[1750107486404,0.9532808,108900.0,108890.0,0.43410306]
[1750107486844,0.96246303,108900.0,108890.0,0.43410306]
[1750107487053,0.9532808,108900.0,108890.0,0.43910306]
[1750107487675,0.96246303,108900.0,108890.0,0.43910306]
[1750107487906,0.9532808,108900.0,108890.0,0.43910306]
[1750107488119,1.66814696,108900.0,108890.0,0.30728033]
[1750107488382,1.98978243,108900.0,108890.0,0.009]
[1750107488600,1.30246395,108900.0,108890.0,0.20203798]
[1750107488809,1.62712312,108900.0,108890.0,0.21122155]
[1750107489247,0.19285466,108890.0,108870.0,0.21129433]
[1750107489458,0.19285466,108890.0,108870.0,0.229711]
[1750107489459,0.55812006,108880.0,108870.0,0.229711]
[1750107489599,0.55812006,108880.0,108870.0,0.42100376]
[1750107490651,0.55811998,108880.0,108870.0,0.42100376]
[1750107490822,0.54893632,108880.0,108870.0,0.42100376]
[1750107491222,0.55811998,108880.0,108870.0,0.42100376]
[1750107491433,0.54893632,108880.0,108870.0,0.42500376]
[1750107491634,0.57648806,108880.0,108870.0,0.31554893]
[1750107491835,0.58567231,108880.0,108870.0,0.31154893]
[1750107492093,0.56730389,108880.0,108870.0,0.30754893]
[1750107492269,0.57648789,108880.0,108870.0,0.31154893]
[1750107492470,0.58567206,108880.0,108870.0,0.31154893]
[1750107492735,0.58567206,108880.0,108870.0,0.31554893]
[1750107492987,0.58567197,108880.0,108870.0,0.31154893]
[1750107493227,0.57648789,108880.0,108870.0,0.30754893]
[1750107493449,0.58767206,108880.0,108870.0,0.30754893]
[1750107493680,0.58767206,108880.0,108870.0,0.43014893]
[1750107493905,0.58767197,108880.0,108870.0,0.43014893]
[1750107494573,0.57848789,108880.0,108870.0,0.43014893]
[1750107495008,0.58767197,108880.0,108870.0,0.43014893]
[1750107496038,0.56930389,108880.0,108870.0,0.43014893]
[1750107496690,0.56930381,108880.0,108870.0,0.43014893]
[1750107497837,0.57848772,108880.0,108870.0,0.43014893]
[1750107499545,0.56930381,108880.0,108870.0,0.43014893]
[1750107499772,0.03809,108880.0,108870.0,0.43014893]
[1750107499985,0.0334,108880.0,108870.0,0.94299525]
[1750107500229,0.0334,108880.0,108870.0,0.43014893]
[1750107500456,0.0334,108880.0,108870.0,0.45773793]
[1750107500876,0.0334,108880.0,108870.0,0.531291]
[1750107501084,0.0334,108880.0,108870.0,1.04413732]
[1750107501291,0.0334,108880.0,108870.0,0.531291]
[1750107501497,0.0334,108880.0,108870.0,0.45773793]
[1750107506346,0.0334,108880.0,108870.0,0.46241793]
[1750107508800,0.04727374,108880.0,108870.0,0.33513793]